[Event "CZE Extraliga 2019-20"]
[Site "Czech Republic"]
[Date "2019.10.13"]
[Round "2.4"]
[White "Simacek, Pavel"]
[Black "Zwardon, Vojtech"]
[Result "1/2-1/2"]
[ECO "B35"]
[WhiteElo "2486"]
[BlackElo "2471"]
[Annotator "ChessBase"]
[PlyCount "79"]
[EventDate "2019.09.15"]
[EventType "team-tourn"]
[EventCountry "CZE"]
[SourceTitle "playchess.com"]
[Source "ChessBase"]
[SourceQuality "1"]
[WhiteTeam "ŠK Zikuda Turnov"]
[BlackTeam "BŠŠ Frýdek-Místek "]
[TimeControl "40/5400+30:1800+30"]

1. e4 {[%emt 0:00:00]} c5 {[%emt 0:00:00]} 2. Nf3 {[%emt 0:00:01]} Nc6 {[%emt 0:00:00]} 3. d4 {[%emt 0:00:11]} cxd4 {[%emt 0:00:00]} 4. Nxd4 {[%emt 0:00:03]} g6 {[%emt 0:00:00]} 5. Nc3 {[%emt 0:00:55]} Bg7 {[%emt 0:00:00]} 6. Be3 {[%emt 0:00:07]} Nf6 {[%emt 0:00:00]} 7. Bc4 {[%emt 0:00:15]} O-O {[%emt 0:00:00]} 8. Bb3 {[%emt 0:00:04]} a5 {[%emt 0:00:00]} 9. O-O {[%emt 0:02:21]} Nxd4 {[%emt 0:00:22]} 10. Bxd4 {[%emt 0:00:36]} d6 {[%emt 0:00:03]} 11. Re1 {[%emt 0:13:55]} Bd7 {[%emt 0:00:48]} 12. a4 {[%emt 0:03:35]} Bc6 {[%emt 0:00:09]} 13. Nd5 {[%emt 0:00:13]} Bxd5 {[%emt 0:02:23]} 14. exd5 {[%emt 0:00:06]} Rc8 {[%emt 0:01:14]} 15. Re3 {[%emt 0:02:29]} Re8 {[%emt 0:01:16]} 16. h3 {[%emt 0:16:54]} Qc7 {[%emt 0:13:40]} 17. Rc3 {[%emt 0:05:32]} Qd7 {[%emt 0:02:54]} 18. Qe1 {[%emt 0:03:52]} Rxc3 {[%emt 0:01:37]} 19. Bxc3 {[%emt 0:00:08]} Qf5 {[%emt 0:01:07]} 20. Bc4 {[%emt 0:32:42]} Qxc2 {[%emt 0:04:07]} 21. Bb5 {[%emt 0:00:37]} Rf8 {[%emt 0:00:55]} 22. Qxe7 {[%emt 0:07:30]} Nxd5 {[%emt 0:01:31]} 23. Qxd6 {[%emt 0:00:48]} Nxc3 {[%emt 0:02:26]} 24. bxc3 {[%emt 0:00:08]} Qxc3 {[%emt 0:00:10]} 25. Rd1 {[%emt 0:00:11]} Be5 {[%emt 0:03:36]} 26. Qb6 {[%emt 0:01:06]} Rb8 {[%emt 0:01:47]} 27. Rd8+ {[%emt 0:02:22]} Rxd8 {[%emt 0:00:06]} 28. Qxd8+ {[%emt 0:00:04]} Kg7 {[%emt 0:00:05]} 29. Qd3 {[%emt 0:00:10]} Qc1+ {[%emt 0:00:24]} 30. Qf1 {[%emt 0:00:03]} Qf4 {[%emt 0:01:12]} 31. g3 {[%emt 0:00:15]} Qf6 {[%emt 0:00:35]} 32. Qe2 {[%emt 0:01:04]} h5 {[%emt 0:00:24]} 33. Kg2 {[%emt 0:03:09]} h4 {[%emt 0:01:41]} 34. Qf3 {[%emt 0:00:06]} Qg5 {[%emt 0:01:51]} 35. Qg4 {[%emt 0:00:15]} Qxg4 {[%emt 0:04:02]} 36. hxg4 {[%emt 0:00:05]} g5 {[%emt 0:00:53]} 37. gxh4 {[%emt 0:01:31]} gxh4 {[%emt 0:00:12]} 38. Kh3 {[%emt 0:00:02]} Bd4 {[%emt 0:00:23]} 39. Kxh4 {[%emt 0:00:05]} Bxf2+ {[%emt 0:00:07]} 40. Kg5 {[%emt 0:00:03]} 1/2-1/2

[Event "CZE Extraliga 2019-20"]
[Site "Czech Republic"]
[Date "2019.10.13"]
[Round "2.5"]
[White "Rydl, Jiri"]
[Black "Nayhebaver, Martin"]
[Result "1-0"]
[ECO "A14"]
[WhiteElo "2422"]
[BlackElo "2481"]
[Annotator "ChessBase"]
[PlyCount "99"]
[EventDate "2019.09.15"]
[EventType "team-tourn"]
[EventCountry "CZE"]
[SourceTitle "playchess.com"]
[Source "ChessBase"]
[SourceQuality "1"]
[WhiteTeam "Siesta Solution Unichess"]
[BlackTeam "Moravská Slavia Brno"]
[TimeControl "40/5400+30:1800+30"]

1. c4 {[%emt 0:00:00]} e6 {[%emt 0:00:02]} 2. g3 {[%emt 0:00:02]} Nf6 {[%emt 0:00:33]} 3. Bg2 {[%emt 0:00:11]} d5 {[%emt 0:00:27]} 4. Nf3 {[%emt 0:00:22]} Be7 {[%emt 0:00:22]} 5. O-O {[%emt 0:00:20]} O-O {[%emt 0:00:27]} 6. d4 {[%emt 0:01:28]} dxc4 {[%emt 0:01:40]} 7. Qc2 {[%emt 0:00:48]} b5 {[%emt 0:03:56]} 8. a4 {[%emt 0:02:20]} b4 {[%emt 0:01:10]} 9. Nfd2 {[%emt 0:00:54]} c6 {[%emt 0:00:31]} 10. Nxc4 {[%emt 0:00:52]} Qxd4 {[%emt 0:00:50]} 11. Be3 {[%emt 0:02:27]} Qd8 {[%emt 0:00:25]} 12. Nbd2 {[%emt 0:01:26]} Nd5 {[%emt 0:05:51]} 13. Nb3 {[%emt 0:04:14]} Ba6 {[%emt 0:06:35]} 14. Bd4 {[%emt 0:12:44]} Nd7 {[%emt 0:15:01]} 15. Nca5 {[%emt 0:20:46]} c5 {[%emt 0:05:27]} 16. Nc6 {[%emt 0:00:23]} Qe8 {[%emt 0:00:10]} 17. Nxc5 {[%emt 0:16:52]} Bxc5 {[%emt 0:02:04]} 18. Bxc5 {[%emt 0:00:43]} b3 {[%emt 0:02:41]} 19. Qc1 {[%emt 0:00:42]} Nxc5 {[%emt 0:05:50]} 20. Qxc5 {[%emt 0:00:19]} Kh8 {[%emt 0:18:06]} 21. Qd6 {[%emt 0:08:19]} Qc8 {[%emt 0:09:15]} 22. Bf3 {[%emt 0:08:06]} Qb7 {[%emt 0:18:21]} 23. Na5 {[%emt 0:00:43]} Qb6 {[%emt 0:00:19]} 24. Qxb6 {[%emt 0:00:07]} axb6 {[%emt 0:00:04]} 25. Nxb3 {[%emt 0:00:10]} Rfc8 {[%emt 0:00:51]} 26. Bxd5 {[%emt 0:06:47]} exd5 {[%emt 0:00:03]} 27. Nd4 {[%emt 0:00:10]} Rc4 {[%emt 0:00:56]} 28. Rfd1 {[%emt 0:00:12]} g6 {[%emt 0:00:51]} 29. b3 {[%emt 0:00:27]} Rc3 {[%emt 0:00:44]} 30. Rac1 {[%emt 0:00:21]} Rac8 {[%emt 0:00:50]} 31. Rxc3 {[%emt 0:00:08]} Rxc3 {[%emt 0:00:02]} 32. Kf1 {[%emt 0:00:14]} Kg7 {[%emt 0:00:38]} 33. Ke1 {[%emt 0:00:15]} Kf6 {[%emt 0:00:15]} 34. Kd2 {[%emt 0:00:17]} Rc5 {[%emt 0:00:12]} 35. Rc1 {[%emt 0:03:15]} Ke5 {[%emt 0:00:18]} 36. e3 {[%emt 0:00:17]} Ke4 {[%emt 0:01:24]} 37. f3+ {[%emt 0:00:10]} Ke5 {[%emt 0:00:03]} 38. Rc3 {[%emt 0:00:41]} g5 {[%emt 0:00:54]} 39. b4 {[%emt 0:01:22]} Rxc3 {[%emt 0:00:42]} 40. Kxc3 {[%emt 0:00:06]} Bf1 {[%emt 0:00:35]} 41. a5 {[%emt 0:33:37]} bxa5 {[%emt 0:02:05]} 42. bxa5 {[%emt 0:00:00]} g4 {[%emt 0:00:36]} 43. fxg4 {[%emt 0:00:00]} Ke4 {[%emt 0:00:17]} 44. Kd2 {[%emt 0:00:00]} Ba6 {[%emt 0:01:10]} 45. g5 {[%emt 0:00:00]} Bc4 {[%emt 0:02:58]} 46. Nc6 {[%emt 0:00:00]} Bf1 {[%emt 0:05:53]} 47. Ke1 {[%emt 0:00:00]} Ba6 {[%emt 0:01:33]} 48. Kf2 {[%emt 0:00:00]} Kf5 {[%emt 0:00:42]} 49. h4 {[%emt 0:00:00]} Bb7 {[%emt 0:00:51]} 50. Nd8 {[%emt 0:00:00]} 1-0

[Event "CZE Extraliga 2019-20"]
[Site "Czech Republic"]
[Date "2019.10.13"]
[Round "2.5"]
[White "Plischki, Sebastian"]
[Black "Cerveny, Martin"]
[Result "1/2-1/2"]
[ECO "A41"]
[WhiteElo "2391"]
[BlackElo "2350"]
[Annotator "NA"]
[PlyCount "83"]
[EventDate "2019.09.15"]
[EventType "team-tourn"]
[EventCountry "CZE"]
[SourceTitle "playchess.com"]
[Source "ChessBase"]
[SourceQuality "1"]
[WhiteTeam "ŠK Dopravní podnik Praha"]
[BlackTeam "ŠK Duras BVK"]
[TimeControl "40/5400+30:1800+30"]

1. d4 {[%emt 0:00:00]} d6 {[%emt 0:00:06]} 2. Nf3 {[%emt 0:00:05]} Nd7 {[%emt 0:00:41]} 3. c4 {[%emt 0:00:35]} e5 {[%emt 0:00:14]} 4. Nc3 {[%emt 0:00:13]} g6 {[%emt 0:00:47]} 5. e4 {[%emt 0:00:46]} Bg7 {[%emt 0:00:26]} 6. Be2 {[%emt 0:00:53]} Ne7 {[%emt 0:00:18]} 7. d5 {[%emt 0:01:18]} a5 {[%emt 0:01:40]} 8. h4 {[%emt 0:05:07]} h6 {[%emt 0:04:15]} 9. h5 {[%emt 0:00:59]} g5 {[%emt 0:00:10]} 10. g4 {[%emt 0:00:38]} Nc5 {[%emt 0:00:44]} 11. Rg1 {[%emt 0:06:57]} c6 {[%emt 0:02:25]} 12. Be3 {[%emt 0:01:37]} cxd5 {[%emt 0:01:17]} 13. cxd5 {[%emt 0:00:07]} Bd7 {[%emt 0:01:52]} 14. Nd2 {[%emt 0:01:36]} O-O {[%emt 0:07:34]} 15. f3 {[%emt 0:01:23]} Qb8 {[%emt 0:02:44]} 16. a4 {[%emt 0:08:09]} b6 {[%emt 0:02:34]} 17. Kf2 {[%emt 0:04:41]} Nc8 {[%emt 0:00:19]} 18. Bxc5 {[%emt 0:05:12]} bxc5 {[%emt 0:00:40]} 19. Bb5 {[%emt 0:00:08]} Rd8 {[%emt 0:02:31]} 20. Nc4 {[%emt 0:15:28]} Na7 {[%emt 0:07:08]} 21. Nxa5 {[%emt 0:18:01]} Nxb5 {[%emt 0:02:18]} 22. axb5 {[%emt 0:00:06]} Bxb5 {[%emt 0:01:26]} 23. Nxb5 {[%emt 0:02:50]} Qxb5 {[%emt 0:00:07]} 24. Qd2 {[%emt 0:00:48]} Bf6 {[%emt 0:04:31]} 25. Nc6 {[%emt 0:01:28]} Rdc8 {[%emt 0:01:14]} 26. Na7 {[%emt 0:02:34]} Rxa7 {[%emt 0:03:19]} 27. Rxa7 {[%emt 0:00:05]} Bd8 {[%emt 0:00:16]} 28. Rga1 {[%emt 0:03:07]} Bb6 {[%emt 0:01:59]} 29. Ra8 {[%emt 0:00:43]} Rxa8 {[%emt 0:00:09]} 30. Rxa8+ {[%emt 0:00:05]} Kg7 {[%emt 0:00:06]} 31. Kg2 {[%emt 0:00:47]} c4 {[%emt 0:00:38]} 32. Ra1 {[%emt 0:04:03]} Bd4 {[%emt 0:01:38]} 33. Qe2 {[%emt 0:01:55]} Qb3 {[%emt 0:05:46]} 34. Rc1 {[%emt 0:01:35]} Bxb2 {[%emt 0:00:48]} 35. Rxc4 {[%emt 0:00:10]} Bd4 {[%emt 0:03:42]} 36. Rc1 {[%emt 0:03:00]} Qa3 {[%emt 0:00:51]} 37. Rd1 {[%emt 0:00:42]} Bc5 {[%emt 0:00:43]} 38. Kg3 {[%emt 0:03:36]} Qb3 {[%emt 0:01:15]} 39. Rc1 {[%emt 0:06:24]} Bd4 {[%emt 0:00:54]} 40. Kg2 {[%emt 0:00:55]} Qa3 {[%emt 0:02:55]} 41. Rd1 {[%emt 0:11:32]} Bc5 {[%emt 0:00:22]} 42. Rd3 {[%emt 0:00:49]} 1/2-1/2

[Event "CZE Extraliga 2019-20"]
[Site "Czech Republic"]
[Date "2019.10.13"]
[Round "2.5"]
[White "Szotkowski, Jakub"]
[Black "Jaracz, Pawel"]
[Result "1/2-1/2"]
[ECO "D15"]
[WhiteElo "2388"]
[BlackElo "2465"]
[Annotator "ChessBase"]
[PlyCount "52"]
[EventDate "2019.09.15"]
[EventType "team-tourn"]
[EventCountry "CZE"]
[SourceTitle "playchess.com"]
[Source "ChessBase"]
[SourceQuality "1"]
[WhiteTeam "BŠŠ Frýdek-Místek "]
[BlackTeam "ŠK Zikuda Turnov"]
[TimeControl "40/5400+30:1800+30"]

1. d4 {[%emt 0:00:00]} d5 {[%emt 0:00:00]} 2. c4 {[%emt 0:00:00]} c6 {[%emt 0:00:11]} 3. Nf3 {[%emt 0:00:20]} Nf6 {[%emt 0:00:20]} 4. Nc3 {[%emt 0:00:23]} a6 {[%emt 0:02:27]} 5. cxd5 {[%emt 0:06:41]} cxd5 {[%emt 0:00:10]} 6. Bf4 {[%emt 0:01:09]} e6 {[%emt 0:05:04]} 7. e3 {[%emt 0:04:16]} Bd6 {[%emt 0:00:38]} 8. Ne5 {[%emt 0:07:51]} Nc6 {[%emt 0:09:24]} 9. Nxc6 {[%emt 0:23:04]} bxc6 {[%emt 0:00:03]} 10. Bxd6 {[%emt 0:02:50]} Qxd6 {[%emt 0:00:05]} 11. Be2 {[%emt 0:00:17]} Rb8 {[%emt 0:10:10]} 12. b3 {[%emt 0:05:44]} c5 {[%emt 0:00:27]} 13. dxc5 {[%emt 0:01:37]} Qxc5 {[%emt 0:00:04]} 14. Rc1 {[%emt 0:00:08]} O-O {[%emt 0:03:16]} 15. O-O {[%emt 0:00:16]} Qd6 {[%emt 0:06:30]} 16. Qd3 {[%emt 0:04:48]} a5 {[%emt 0:15:35]} 17. Rfd1 {[%emt 0:04:46]} Qe7 {[%emt 0:03:30]} 18. e4 {[%emt 0:08:31]} dxe4 {[%emt 0:00:42]} 19. Nxe4 {[%emt 0:00:06]} Nd5 {[%emt 0:00:17]} 20. Qg3 Bb7 {[%emt 0:02:34]} 21. Bf3 {[%emt 0:04:32]} Rbd8 {[%emt 0:03:01]} 22. h4 {[%emt 0:03:19]} h6 {[%emt 0:02:12]} 23. h5 {[%emt 0:02:54]} Ba8 {[%emt 0:01:50]} 24. Rc4 {[%emt 0:01:51]} e5 {[%emt 0:02:05]} 25. Nc3 {[%emt 0:03:33]} Nxc3 {[%emt 0:00:49]} 26. Rxc3 {[%emt 0:01:46]} Bxf3 {[%emt 0:02:12]} 1/2-1/2

[Event "CZE Extraliga 2019-20"]
[Site "Czech Republic"]
[Date "2019.10.13"]
[Round "2.5"]
[White "Rubes, Jan"]
[Black "Pechac, Jergus"]
[Result "1/2-1/2"]
[ECO "B13"]
[WhiteElo "2363"]
[BlackElo "2489"]
[Annotator "ChessBase"]
[PlyCount "95"]
[EventDate "2019.09.15"]
[EventType "team-tourn"]
[EventCountry "CZE"]
[SourceTitle "playchess.com"]
[Source "ChessBase"]
[SourceQuality "1"]
[WhiteTeam "Slavia Kromerí\[#\]"]
[BlackTeam "GASCO Pardubice"]
[TimeControl "40/5400+30:1800+30"]

1. d4 {[%emt 0:00:00]} d5 {[%emt 0:00:00]} 2. Bf4 {[%emt 0:00:00]} c5 {[%emt 0:00:10]} 3. e3 {[%emt 0:00:07]} Nc6 {[%emt 0:00:53]} 4. c3 {[%emt 0:00:10]} cxd4 {[%emt 0:00:37]} 5. exd4 {[%emt 0:00:11]} Bf5 {[%emt 0:00:20]} 6. Nf3 {[%emt 0:03:02]} e6 {[%emt 0:01:30]} 7. Nbd2 {[%emt 0:03:52]} Bd6 {[%emt 0:01:05]} 8. Bxd6 {[%emt 0:03:12]} Qxd6 {[%emt 0:00:07]} 9. Be2 {[%emt 0:00:10]} h6 {[%emt 0:00:38]} 10. O-O {[%emt 0:03:26]} Nf6 {[%emt 0:00:10]} 11. Re1 {[%emt 0:06:07]} O-O {[%emt 0:00:13]} 12. Bb5 {[%emt 0:05:54]} Nd7 {[%emt 0:02:11]} 13. Nf1 {[%emt 0:01:45]} Rab8 {[%emt 0:02:34]} 14. Bd3 {[%emt 0:08:03]} Bxd3 {[%emt 0:00:57]} 15. Qxd3 {[%emt 0:00:05]} Na5 {[%emt 0:03:36]} 16. N1d2 {[%emt 0:02:35]} Rfc8 {[%emt 0:00:38]} 17. Re2 {[%emt 0:11:28]} Qc6 {[%emt 0:06:00]} 18. a4 {[%emt 0:06:49]} Qb6 {[%emt 0:04:14]} 19. Qb5 {[%emt 0:07:27]} Qc7 {[%emt 0:01:10]} 20. g3 {[%emt 0:02:31]} a6 {[%emt 0:03:29]} 21. Qd3 {[%emt 0:00:21]} Qb6 {[%emt 0:00:39]} 22. b4 {[%emt 0:03:54]} Nc4 {[%emt 0:00:16]} 23. Nxc4 {[%emt 0:04:57]} Rxc4 {[%emt 0:00:09]} 24. Nd2 {[%emt 0:00:07]} Rcc8 {[%emt 0:04:28]} 25. a5 {[%emt 0:00:18]} Qc6 {[%emt 0:02:00]} 26. Re3 {[%emt 0:00:39]} b6 {[%emt 0:14:41]} 27. axb6 {[%emt 0:01:07]} Rxb6 {[%emt 0:00:12]} 28. Nb3 {[%emt 0:02:13]} Rb5 {[%emt 0:00:18]} 29. f4 {[%emt 0:04:24]} g6 {[%emt 0:02:03]} 30. g4 {[%emt 0:02:04]} Kg7 {[%emt 0:05:16]} 31. f5 {[%emt 0:02:06]} exf5 {[%emt 0:00:38]} 32. gxf5 {[%emt 0:00:05]} g5 {[%emt 0:00:15]} 33. f6+ {[%emt 0:07:39]} Qxf6 {[%emt 0:08:28]} 34. Rf1 {[%emt 0:01:38]} Qg6 {[%emt 0:00:34]} 35. Qe2 {[%emt 0:02:20]} Nf6 {[%emt 0:00:09]} 36. Nc5 {[%emt 0:01:50]} Ne4 {[%emt 0:00:20]} 37. Ref3 {[%emt 0:00:29]} Rc7 {[%emt 0:16:32]} 38. Rf5 {[%emt 0:00:20]} Qd6 {[%emt 0:09:36]} 39. c4 {[%emt 0:02:11]} Rxb4 {[%emt 0:00:47]} 40. Qf3 {[%emt 0:03:38]} Qg6 {[%emt 0:10:05]} 41. Nxe4 {[%emt 0:21:12]} dxe4 {[%emt 0:00:09]} 42. Qxe4 {[%emt 0:00:06]} Rbxc4 {[%emt 0:08:38]} 43. Qe5+ {[%emt 0:00:49]} Kh7 {[%emt 0:02:19]} 44. Rf6 {[%emt 0:00:53]} Qh5 {[%emt 0:00:30]} 45. Qe4+ {[%emt 0:01:38]} Kg8 {[%emt 0:09:29]} 46. Qe8+ {[%emt 0:00:08]} Kg7 {[%emt 0:00:04]} 47. Qe5 {[%emt 0:00:14]} Kh7 {[%emt 0:08:42]} 48. Qe4+ {[%emt 0:00:05]} 1/2-1/2

[Event "CZE Extraliga 2019-20"]
[Site "Czech Republic"]
[Date "2019.10.13"]
[Round "2.6"]
[White "Petr, Martin"]
[Black "Konopka, Michal"]
[Result "1/2-1/2"]
[ECO "B01"]
[WhiteElo "2460"]
[BlackElo "2351"]
[Annotator "ChessBase"]
[PlyCount "75"]
[EventDate "2019.09.15"]
[EventType "team-tourn"]
[EventCountry "CZE"]
[SourceTitle "playchess.com"]
[Source "ChessBase"]
[SourceQuality "1"]
[WhiteTeam "GASCO Pardubice"]
[BlackTeam "Slavia Kromerí\[#\] "]
[TimeControl "40/5400+30:1800+30"]

1. e4 {[%emt 0:00:00]} d5 {[%emt 0:00:00]} 2. exd5 {[%emt 0:00:00]} Qxd5 {[%emt 0:00:03]} 3. Nc3 {[%emt 0:00:00]} Qa5 {[%emt 0:00:56]} 4. d4 {[%emt 0:00:13]} Nf6 {[%emt 0:00:13]} 5. Nf3 {[%emt 0:00:17]} Bf5 {[%emt 0:00:21]} 6. Ne5 {[%emt 0:03:26]} c6 {[%emt 0:07:40]} 7. Bc4 {[%emt 0:00:25]} e6 {[%emt 0:00:13]} 8. g4 {[%emt 0:00:04]} Bg6 {[%emt 0:02:34]} 9. h4 {[%emt 0:03:29]} Nbd7 {[%emt 0:08:12]} 10. Nxd7 {[%emt 0:01:17]} Kxd7 {[%emt 0:06:20]} 11. h5 {[%emt 0:14:07]} Be4 {[%emt 0:01:23]} 12. O-O {[%emt 0:00:14]} Bd5 {[%emt 0:02:01]} 13. Nxd5 {[%emt 0:00:44]} cxd5 {[%emt 0:09:49]} 14. Bd3 {[%emt 0:00:15]} h6 {[%emt 0:00:51]} 15. c4 {[%emt 0:10:32]} dxc4 {[%emt 0:05:58]} 16. Bxc4 {[%emt 0:00:19]} Rc8 {[%emt 0:01:37]} 17. Bb3 {[%emt 0:02:54]} Bd6 {[%emt 0:01:33]} 18. Qf3 {[%emt 0:09:01]} Kc7 {[%emt 0:14:19]} 19. Bf4 {[%emt 0:03:41]} Qb6 {[%emt 0:04:53]} 20. Be5 {[%emt 0:05:30]} Kb8 {[%emt 0:01:04]} 21. Rac1 {[%emt 0:00:22]} Rxc1 {[%emt 0:07:39]} 22. Rxc1 {[%emt 0:00:10]} Bxe5 {[%emt 0:00:17]} 23. dxe5 {[%emt 0:00:14]} Nd7 {[%emt 0:00:05]} 24. Re1 {[%emt 0:07:22]} Rf8 {[%emt 0:06:50]} 25. Qe3 {[%emt 0:05:27]} Qxe3 {[%emt 0:06:48]} 26. Rxe3 {[%emt 0:00:08]} Nc5 {[%emt 0:00:15]} 27. Kg2 {[%emt 0:05:45]} Rd8 {[%emt 0:01:03]} 28. Rf3 {[%emt 0:05:02]} Nxb3 {[%emt 0:03:28]} 29. Rxb3 {[%emt 0:01:04]} Rd2 {[%emt 0:02:00]} 30. Rf3 {[%emt 0:03:00]} Rd7 {[%emt 0:00:11]} 31. Kg3 {[%emt 0:03:26]} Kc7 {[%emt 0:00:08]} 32. a4 {[%emt 0:02:36]} Kd8 {[%emt 0:00:15]} 33. Rc3 {[%emt 0:00:22]} Rd4 {[%emt 0:01:16]} 34. Rf3 {[%emt 0:02:01]} Ke7 {[%emt 0:01:29]} 35. Rf4 {[%emt 0:00:32]} Rd3+ {[%emt 0:00:34]} 36. Rf3 {[%emt 0:00:05]} Rd4 {[%emt 0:00:12]} 37. Rf4 {[%emt 0:01:10]} Rd3+ {[%emt 0:00:08]} 38. Rf3 {[%emt 0:00:23]} 1/2-1/2

[Event "CZE Extraliga 2019-20"]
[Site "Czech Republic"]
[Date "2019.10.13"]
[Round "2.6"]
[White "Vlasak, Lukas"]
[Black "Jasny, Stanislav"]
[Result "1-0"]
[ECO "B06"]
[WhiteElo "2423"]
[BlackElo "2326"]
[Annotator "NA"]
[PlyCount "71"]
[EventDate "2019.09.15"]
[EventType "team-tourn"]
[EventCountry "CZE"]
[SourceTitle "playchess.com"]
[Source "ChessBase"]
[SourceQuality "1"]
[WhiteTeam " ŠK Zikuda Turnov"]
[BlackTeam "BŠŠ Frýdek-Místek"]
[TimeControl "40/5400+30:1800+30"]

1. e4 {[%emt 0:00:00]} g6 {[%emt 0:00:40]} 2. d4 {[%emt 0:00:00]} d6 {[%emt 0:00:06]} 3. Bc4 {[%emt 0:05:04]} Nf6 {[%emt 0:04:28]} 4. Qe2 {[%emt 0:00:46]} Bg7 {[%emt 0:03:18]} 5. Nf3 {[%emt 0:00:16]} O-O {[%emt 0:04:57]} 6. e5 {[%emt 0:00:23]} dxe5 {[%emt 0:00:40]} 7. dxe5 {[%emt 0:00:11]} Nd5 {[%emt 0:00:28]} 8. h3 {[%emt 0:00:58]} c6 {[%emt 0:00:54]} 9. O-O {[%emt 0:01:40]} b5 {[%emt 0:23:04]} 10. Bb3 {[%emt 0:07:09]} Na6 {[%emt 0:02:35]} 11. c4 {[%emt 0:02:17]} bxc4 {[%emt 0:00:48]} 12. Bxc4 {[%emt 0:00:08]} Qb6 {[%emt 0:01:28]} 13. Nc3 {[%emt 0:06:44]} Nxc3 {[%emt 0:05:21]} 14. bxc3 {[%emt 0:00:10]} Nc7 {[%emt 0:00:05]} 15. Be3 {[%emt 0:24:42]} Qa5 {[%emt 0:03:28]} 16. Nd4 {[%emt 0:01:21]} Qxe5 {[%emt 0:02:28]} 17. Nxc6 {[%emt 0:05:12]} Qe4 {[%emt 0:02:26]} 18. Nxa7 {[%emt 0:04:49]} Be6 {[%emt 0:09:48]} 19. Bd3 {[%emt 0:07:54]} Qa4 {[%emt 0:01:42]} 20. Nb5 {[%emt 0:01:06]} Nxb5 {[%emt 0:04:56]} 21. Bxb5 {[%emt 0:00:10]} Qe4 {[%emt 0:00:51]} 22. Bd3 {[%emt 0:03:15]} Qe5 {[%emt 0:03:53]} 23. a4 {[%emt 0:01:50]} Qxc3 {[%emt 0:00:24]} 24. Rac1 {[%emt 0:00:26]} Qf6 {[%emt 0:10:44]} 25. Bb5 {[%emt 0:04:24]} Bb3 {[%emt 0:01:28]} 26. Bc5 {[%emt 0:01:19]} Rfc8 {[%emt 0:05:22]} 27. Bxe7 {[%emt 0:06:14]} Qf4 {[%emt 0:00:07]} 28. Rxc8+ {[%emt 0:02:41]} Rxc8 {[%emt 0:00:04]} 29. Qg4 {[%emt 0:01:19]} Qxg4 {[%emt 0:00:33]} 30. hxg4 {[%emt 0:00:01]} Bd4 {[%emt 0:02:57]} 31. Rb1 {[%emt 0:05:53]} Bc2 {[%emt 0:01:19]} 32. Rc1 {[%emt 0:00:39]} Kg7 {[%emt 0:00:36]} 33. g5 {[%emt 0:02:13]} Bb2 {[%emt 0:01:30]} 34. Bf6+ {[%emt 0:00:14]} Bxf6 {[%emt 0:00:25]} 35. gxf6+ {[%emt 0:00:05]} Kxf6 {[%emt 0:00:08]} 36. Bd3 {[%emt 0:00:07]} 1-0

[Event "CZE Extraliga 2019-20"]
[Site "Czech Republic"]
[Date "2019.10.13"]
[Round "2.6"]
[White "Chytilek, Roman"]
[Black "Voloshin, Leonid"]
[Result "1/2-1/2"]
[ECO "A46"]
[WhiteElo "2330"]
[BlackElo "2361"]
[Annotator "NA"]
[PlyCount "37"]
[EventDate "2019.09.15"]
[EventType "team-tourn"]
[EventCountry "CZE"]
[SourceTitle "playchess.com"]
[Source "ChessBase"]
[SourceQuality "1"]
[WhiteTeam "ŠK Duras BVK"]
[BlackTeam "ŠK Dopravní podnik Praha "]
[TimeControl "40/5400+30:1800+30"]

1. d4 {[%emt 0:00:00]} Nf6 2. Nf3 {[%emt 0:00:30]} e6 {[%emt 0:00:51]} 3. g3 b5 {[%emt 0:04:57]} 4. Bg2 {[%emt 0:05:29]} Bb7 {[%emt 0:03:15]} 5. c3 {[%emt 0:00:09]} c5 {[%emt 0:00:34]} 6. O-O {[%emt 0:04:14]} Be7 {[%emt 0:02:18]} 7. dxc5 {[%emt 0:09:06]} Bxc5 {[%emt 0:00:39]} 8. b4 {[%emt 0:00:18]} Be7 {[%emt 0:06:13]} 9. a4 {[%emt 0:00:43]} bxa4 {[%emt 0:01:06]} 10. Qxa4 {[%emt 0:00:47]} a5 {[%emt 0:20:33]} 11. b5 {[%emt 0:08:52]} d5 {[%emt 0:16:16]} 12. Nd4 {[%emt 0:29:42]} O-O {[%emt 0:02:16]} 13. Ba3 {[%emt 0:14:44]} Nbd7 {[%emt 0:06:21]} 14. Nd2 {[%emt 0:00:29]} Nb6 {[%emt 0:02:11]} 15. Qb3 {[%emt 0:01:20]} a4 {[%emt 0:04:43]} 16. Qb2 {[%emt 0:00:33]} Bxa3 {[%emt 0:00:26]} 17. Qxa3 {[%emt 0:00:37]} Qc7 {[%emt 0:00:22]} 18. Rfc1 {[%emt 0:02:02]} Rfc8 {[%emt 0:01:19]} 19. e3 {[%emt 0:07:21]} 1/2-1/2

[Event "CZE Extraliga 2019-20"]
[Site "Czech Republic"]
[Date "2019.10.13"]
[Round "2.6"]
[White "Obsivac, Josef"]
[Black "Jurcik, Marian"]
[Result "1/2-1/2"]
[ECO "D26"]
[WhiteElo "2285"]
[BlackElo "2486"]
[Annotator "ChessBase"]
[PlyCount "45"]
[EventDate "2019.09.15"]
[EventType "team-tourn"]
[EventCountry "CZE"]
[SourceTitle "playchess.com"]
[Source "ChessBase"]
[SourceQuality "1"]
[WhiteTeam " Moravská Slavia Brno"]
[BlackTeam "Siesta Solution Unichess"]
[TimeControl "40/5400+30:1800+30"]

1. d4 {[%emt 0:00:00]} d5 {[%emt 0:00:11]} 2. c4 {[%emt 0:00:00]} dxc4 {[%emt 0:00:51]} 3. Nf3 {[%emt 0:00:05]} Nf6 {[%emt 0:00:48]} 4. e3 {[%emt 0:00:18]} e6 {[%emt 0:01:25]} 5. Bxc4 {[%emt 0:00:13]} a6 {[%emt 0:00:41]} 6. O-O {[%emt 0:01:41]} b5 {[%emt 0:03:17]} 7. Bd3 {[%emt 0:02:10]} Bb7 {[%emt 0:04:44]} 8. Qe2 {[%emt 0:02:34]} c5 {[%emt 0:03:02]} 9. dxc5 {[%emt 0:02:27]} b4 {[%emt 0:26:28]} 10. Rd1 {[%emt 0:08:04]} Qc7 {[%emt 0:03:31]} 11. Nbd2 {[%emt 0:03:21]} Bxc5 {[%emt 0:04:20]} 12. Nb3 {[%emt 0:04:00]} Bd6 {[%emt 0:07:34]} 13. e4 {[%emt 0:06:52]} Nbd7 {[%emt 0:01:50]} 14. Bg5 {[%emt 0:02:35]} Bf4 {[%emt 0:12:53]} 15. Bxf4 {[%emt 0:16:28]} Qxf4 {[%emt 0:00:03]} 16. Rac1 {[%emt 0:05:54]} Bxe4 {[%emt 0:04:18]} 17. Bxe4 {[%emt 0:04:57]} Qxe4 {[%emt 0:00:06]} 18. Qxe4 {[%emt 0:01:11]} Nxe4 {[%emt 0:00:01]} 19. Rd4 {[%emt 0:04:02]} Nef6 {[%emt 0:02:39]} 20. Rxb4 {[%emt 0:00:14]} Ke7 {[%emt 0:02:12]} 21. Rb7 {[%emt 0:02:04]} Rhc8 {[%emt 0:05:17]} 22. Rxc8 {[%emt 0:05:04]} Rxc8 {[%emt 0:00:01]} 23. Nfd4 {[%emt 0:01:27]} 1/2-1/2